[Event "2nd FIDE WCC Rapid G12"]
[Site "Minsk"]
[Date "2018.06.22"]
[Round "3"]
[White "Omonova, Umida"]
[Black "Nguyen, Linh Dan"]
[Result "1-0"]
[ECO "B33"]
[WhiteElo "1733"]
[BlackElo "1325"]
[Annotator "NA RC"]
[PlyCount "97"]
[EventDate "2018.06.22"]
[EventType "rapid"]
[EventCountry "BLR"]
[SourceTitle "playchess.com"]
[Source "ChessBase"]
[SourceQuality "1"]
[TimeControl "600+5"]

1. e4 {[%emt 0:00:00]} c5 {[%emt 0:00:01]} 2. Nf3 {[%emt 0:00:00]} Nc6 {[%emt 0:00:01]} 3. d4 {[%emt 0:00:01]} cxd4 {[%emt 0:00:03]} 4. Nxd4 {[%emt 0:00:02]} Nf6 {[%emt 0:00:02]} 5. Nc3 {[%emt 0:00:03]} e5 {[%emt 0:00:03]} 6. Ndb5 {[%emt 0:00:14]} d6 {[%emt 0:00:04]} 7. Bg5 {[%emt 0:00:02]} a6 {[%emt 0:00:01]} 8. Na3 {[%emt 0:00:01]} b5 {[%emt 0:00:02]} 9. Nd5 {[%emt 0:00:02]} Be7 {[%emt 0:00:02]} 10. Bxf6 {[%emt 0:00:06]} Bxf6 {[%emt 0:00:02]} 11. c4 {[%emt 0:00:01]} b4 {[%emt 0:00:02]} 12. Nc2 {[%emt 0:00:01]} a5 {[%emt 0:00:01]} 13. g3 {[%emt 0:00:06]} Bg5 {[%emt 0:00:24]} 14. Bg2 {[%emt 0:00:02]} O-O {[%emt 0:00:04]} 15. O-O {[%emt 0:00:03]} Be6 {[%emt 0:00:26]} 16. b3 {[%emt 0:00:42]} Ne7 {[%emt 0:00:29]} 17. Qd3 {[%emt 0:01:53]} Bxd5 {[%emt 0:00:32]} 18. exd5 {[%emt 0:00:08]} f5 {[%emt 0:00:06]} 19. Rad1 {[%emt 0:00:32]} Rc8 {[%emt 0:00:43]} 20. Kh1 {[%emt 0:00:11]} Ng6 {[%emt 0:00:28]} 21. h4 {[%emt 0:00:59]} e4 {[%emt 0:01:08]} 22. Qe2 {[%emt 0:00:40]} Bf6 {[%emt 0:00:41]} 23. f3 {[%emt 0:00:26]} exf3 {[%emt 0:00:48]} 24. Qxf3 {[%emt 0:00:05]} Be5 {[%emt 0:00:02]} 25. Bh3 {[%emt 0:00:10]} Ne7 {[%emt 0:00:30]} 26. Ne1 {[%emt 0:00:39]} Ra8 {[%emt 0:00:57]} 27. Nd3 {[%emt 0:00:02]} Ra6 {[%emt 0:00:42]} 28. Rfe1 {[%emt 0:01:00]} Ng6 {[%emt 0:00:32]} 29. h5 {[%emt 0:00:09]} Bc3 {[%emt 0:00:24]} 30. hxg6 {[%emt 0:00:06]} Bxe1 {[%emt 0:00:03]} 31. gxh7+ {[%emt 0:00:02]} Kxh7 {[%emt 0:00:03]} 32. Bxf5+ {[%emt 0:00:19]} Kh6 {[%emt 0:00:39]} 33. Rxe1 {[%emt 0:00:06]} Qg5 {[%emt 0:00:25]} 34. g4 {[%emt 0:00:20]} g6 {[%emt 0:00:14]} 35. Re6 {[%emt 0:00:47]} Kg7 {[%emt 0:00:41]} 36. Nf4 {[%emt 0:00:06]} Qh4+ {[%emt 0:00:19]} 37. Kg2 {[%emt 0:00:02]} gxf5 {[%emt 0:00:04]} 38. Nh5+ {[%emt 0:01:13]} Kh7 {[%emt 0:00:17]} 39. gxf5 {[%emt 0:00:10]} Qg5+ {[%emt 0:00:26]} 40. Ng3 {[%emt 0:00:02]} Ra7 {[%emt 0:00:06]} 41. Rg6 {[%emt 0:00:35]} Qh4 {[%emt 0:00:22]} 42. Rg4 {[%emt 0:00:01]} Qh6 {[%emt 0:00:06]} 43. Rg6 {[%emt 0:00:29]} Qh4 {[%emt 0:00:02]} 44. Rg4 {[%emt 0:00:19]} Qh6 {[%emt 0:00:02]} 45. Qe4 {[%emt 0:00:03]} Qd2+ {[%emt 0:00:16]} 46. Kh3 {[%emt 0:00:11]} Rf6 {[%emt 0:00:07]} 47. Nh5 {[%emt 0:00:16]} Rh6 {[%emt 0:00:04]} 48. f6+ {[%emt 0:00:01]} Kh8 {[%emt 0:00:03]} 49. Qe8+ {[%emt 0:00:00]} 1-0

[Event "2nd FIDE WCC Rapid G12"]
[Site "Minsk"]
[Date "2018.06.22"]
[Round "3"]
[White "Fedoricheva, Ekaterina"]
[Black "Zavivaeva, Emilia"]
[Result "0-1"]
[ECO "A04"]
[WhiteElo "1544"]
[BlackElo "1556"]
[Annotator "NA RC"]
[PlyCount "112"]
[EventDate "2018.06.22"]
[EventType "rapid"]
[EventCountry "BLR"]
[SourceTitle "playchess.com"]
[Source "ChessBase"]
[SourceQuality "1"]
[TimeControl "600+5"]

1. Nf3 {[%emt 0:00:00]} a6 {[%emt 0:00:05]} 2. g3 {[%emt 0:00:00]} b5 {[%emt 0:00:02]} 3. Bg2 {[%emt 0:00:01]} Bb7 {[%emt 0:00:01]} 4. O-O {[%emt 0:00:04]} e6 {[%emt 0:00:04]} 5. d3 {[%emt 0:00:02]} c5 {[%emt 0:00:07]} 6. Nbd2 {[%emt 0:00:02]} Nf6 {[%emt 0:00:03]} 7. e4 {[%emt 0:00:05]} Be7 {[%emt 0:00:26]} 8. Re1 {[%emt 0:01:13]} O-O {[%emt 0:00:07]} 9. c3 {[%emt 0:00:34]} d5 {[%emt 0:00:18]} 10. exd5 {[%emt 0:00:18]} Nxd5 {[%emt 0:00:05]} 11. Ne4 {[%emt 0:00:04]} Qc7 {[%emt 0:00:30]} 12. Be3 {[%emt 0:01:08]} Nxe3 {[%emt 0:01:44]} 13. Rxe3 {[%emt 0:00:07]} Nc6 {[%emt 0:00:15]} 14. Qc2 {[%emt 0:00:40]} Rad8 {[%emt 0:00:37]} 15. Rd1 {[%emt 0:00:46]} Rd7 {[%emt 0:03:08]} 16. a3 {[%emt 0:01:39]} Rfd8 {[%emt 0:00:06]} 17. Ree1 {[%emt 0:00:33]} Na5 {[%emt 0:00:50]} 18. Bf1 {[%emt 0:01:35]} Bd5 {[%emt 0:01:02]} 19. Ned2 {[%emt 0:00:28]} Bf6 {[%emt 0:01:08]} 20. b4 {[%emt 0:00:49]} cxb4 {[%emt 0:00:37]} 21. axb4 {[%emt 0:00:03]} Nc6 {[%emt 0:00:01]} 22. Nb3 {[%emt 0:00:42]} Nxb4 {[%emt 0:00:02]} 23. Qb1 {[%emt 0:00:10]} Qxc3 {[%emt 0:00:02]} 24. Nbd2 {[%emt 0:00:31]} Ba2 {[%emt 0:00:04]} 25. Qc1 {[%emt 0:00:05]} Qxc1 {[%emt 0:00:02]} 26. Rxc1 {[%emt 0:00:01]} Nxd3 {[%emt 0:00:04]} 27. Bxd3 {[%emt 0:00:02]} Rxd3 {[%emt 0:00:02]} 28. Rc6 {[%emt 0:00:24]} Bd5 {[%emt 0:00:01]} 29. Rxa6 {[%emt 0:00:11]} Bxf3 {[%emt 0:00:03]} 30. Nxf3 {[%emt 0:00:01]} Rxf3 {[%emt 0:00:01]} 31. Rb1 {[%emt 0:00:02]} h5 {[%emt 0:00:07]} 32. Kg2 {[%emt 0:00:00]} Rfd3 {[%emt 0:00:01]} 33. Rxb5 {[%emt 0:00:03]} g6 {[%emt 0:00:04]} 34. Rb7 {[%emt 0:00:09]} R3d7 {[%emt 0:00:03]} 35. Rb3 {[%emt 0:00:04]} Kg7 {[%emt 0:00:02]} 36. h4 {[%emt 0:00:11]} Rd2 {[%emt 0:00:04]} 37. Ra7 {[%emt 0:00:08]} Rxf2+ {[%emt 0:00:04]} 38. Kxf2 {[%emt 0:00:07]} Bd4+ {[%emt 0:00:02]} 39. Kf3 {[%emt 0:00:00]} Bxa7 {[%emt 0:00:01]} 40. Rb7 {[%emt 0:00:02]} Bd4 {[%emt 0:00:02]} 41. Rb3 {[%emt 0:00:03]} Bf6 {[%emt 0:00:02]} 42. Ke4 {[%emt 0:00:12]} Rd4+ {[%emt 0:00:10]} 43. Kf3 {[%emt 0:00:01]} Rg4 {[%emt 0:00:02]} 44. Ra3 {[%emt 0:00:08]} Be5 {[%emt 0:00:02]} 45. Kf2 {[%emt 0:00:04]} Bd6 {[%emt 0:00:02]} 46. Rd3 {[%emt 0:00:04]} Bc5+ {[%emt 0:00:04]} 47. Kf3 e5 {[%emt 0:00:06]} 48. Rd5 {[%emt 0:00:05]} e4+ {[%emt 0:00:01]} 49. Kg2 {[%emt 0:00:03]} Bb6 {[%emt 0:00:02]} 50. Rd6 {[%emt 0:00:05]} Rxg3+ {[%emt 0:00:05]} 51. Kf1 {[%emt 0:00:20]} Rb3 {[%emt 0:00:01]} 52. Ke2 {[%emt 0:00:02]} e3 {[%emt 0:00:04]} 53. Rc6 {[%emt 0:00:03]} Rb2+ {[%emt 0:00:05]} 54. Ke1 {[%emt 0:00:01]} Ba5+ {[%emt 0:00:02]} 55. Kf1 {[%emt 0:00:04]} e2+ {[%emt 0:00:01]} 56. Kg1 {[%emt 0:00:02]} e1=Q# {[%emt 0:00:02]} 0-1

[Event "2nd FIDE WCC Rapid G12"]
[Site "Minsk"]
[Date "2018.06.22"]
[Round "3"]
[White "Korovina, Yana"]
[Black "Osmolovska, Yevheniia"]
[Result "0-1"]
[ECO "B40"]
[WhiteElo "1525"]
[BlackElo "1391"]
[Annotator "NA RC"]
[PlyCount "108"]
[EventDate "2018.06.22"]
[EventType "rapid"]
[EventCountry "BLR"]
[SourceTitle "playchess.com"]
[Source "ChessBase"]
[SourceQuality "1"]
[TimeControl "600+5"]

1. e4 {[%emt 0:00:00]} c5 {[%emt 0:00:00]} 2. Nf3 {[%emt 0:00:01]} e6 {[%emt 0:00:02]} 3. d3 {[%emt 0:00:02]} Nf6 {[%emt 0:00:05]} 4. Nbd2 {[%emt 0:00:02]} d5 {[%emt 0:00:01]} 5. g3 {[%emt 0:00:01]} Nc6 {[%emt 0:00:04]} 6. Bg2 {[%emt 0:00:01]} d4 {[%emt 0:00:07]} 7. O-O {[%emt 0:00:03]} Bd6 {[%emt 0:00:03]} 8. Re1 {[%emt 0:00:04]} e5 {[%emt 0:00:06]} 9. Nc4 {[%emt 0:00:05]} Bc7 {[%emt 0:00:01]} 10. Bg5 {[%emt 0:00:17]} b5 {[%emt 0:00:11]} 11. Ncd2 {[%emt 0:00:06]} h6 {[%emt 0:00:05]} 12. Bxf6 {[%emt 0:00:04]} Qxf6 {[%emt 0:00:01]} 13. Nb3 {[%emt 0:00:06]} Qe7 {[%emt 0:00:06]} 14. a4 {[%emt 0:00:09]} b4 {[%emt 0:00:07]} 15. Nbd2 {[%emt 0:00:07]} Ba6 {[%emt 0:00:07]} 16. b3 {[%emt 0:00:28]} g5 {[%emt 0:00:38]} 17. Nc4 {[%emt 0:00:11]} O-O-O {[%emt 0:00:13]} 18. Nfd2 {[%emt 0:00:05]} Rdg8 {[%emt 0:00:06]} 19. Qg4+ {[%emt 0:00:32]} Kb8 {[%emt 0:00:04]} 20. Qf3 {[%emt 0:00:35]} h5 {[%emt 0:00:15]} 21. Qe2 {[%emt 0:01:07]} g4 {[%emt 0:00:06]} 22. Rf1 {[%emt 0:00:56]} h4 {[%emt 0:00:18]} 23. Rab1 {[%emt 0:00:37]} Bc8 {[%emt 0:00:15]} 24. f4 {[%emt 0:00:14]} hxg3 {[%emt 0:00:45]} 25. hxg3 {[%emt 0:00:05]} f6 {[%emt 0:00:14]} 26. f5 {[%emt 0:00:14]} Rg5 {[%emt 0:00:20]} 27. Ra1 {[%emt 0:00:08]} a5 {[%emt 0:00:16]} 28. Rab1 {[%emt 0:00:15]} Qg7 {[%emt 0:00:03]} 29. Ra1 {[%emt 0:00:02]} Rgh5 {[%emt 0:00:02]} 30. Rab1 {[%emt 0:00:45]} Nd8 {[%emt 0:00:03]} 31. Ra1 {[%emt 0:00:33]} Nf7 {[%emt 0:00:32]} 32. Rab1 {[%emt 0:00:08]} Ng5 {[%emt 0:00:15]} 33. Qxg4 {[%emt 0:01:12]} Nh3+ {[%emt 0:00:05]} 34. Bxh3 {[%emt 0:00:03]} Qh6 {[%emt 0:00:14]} 35. Bg2 {[%emt 0:00:13]} Rg5 {[%emt 0:00:06]} 36. Qf3 {[%emt 0:00:04]} Rhg8 {[%emt 0:00:25]} 37. Kf2 {[%emt 0:00:06]} Qg7 {[%emt 0:00:02]} 38. Bh1 {[%emt 0:00:19]} Rxg3 {[%emt 0:00:04]} 39. Qe2 {[%emt 0:00:07]} Qh6 {[%emt 0:00:31]} 40. Ke1 {[%emt 0:00:21]} Rg1 {[%emt 0:00:05]} 41. Kd1 {[%emt 0:00:13]} Qxh1 {[%emt 0:00:05]} 42. Kc1 {[%emt 0:00:09]} Rxf1+ {[%emt 0:00:12]} 43. Nxf1 {[%emt 0:00:01]} Rg1 {[%emt 0:00:08]} 44. Kb2 {[%emt 0:00:01]} Ba6 {[%emt 0:00:16]} 45. Rd1 {[%emt 0:00:21]} Rg2 {[%emt 0:00:15]} 46. Qe1 {[%emt 0:00:53]} Bxc4 {[%emt 0:00:04]} 47. dxc4 {[%emt 0:00:03]} Rg1 {[%emt 0:00:16]} 48. Qe2 {[%emt 0:00:12]} Bd8 {[%emt 0:00:10]} 49. Qf2 {[%emt 0:00:47]} Rg2 {[%emt 0:00:18]} 50. Qe1 {[%emt 0:00:02]} Rg1 {[%emt 0:00:16]} 51. Qf2 {[%emt 0:00:05]} d3 {[%emt 0:00:09]} 52. Rxd3 {[%emt 0:00:16]} Rxf1 {[%emt 0:00:13]} 53. Rxd8+ {[%emt 0:00:05]} Kc7 {[%emt 0:00:01]} 54. Qd2 {[%emt 0:00:02]} Rb1+ {[%emt 0:00:02]} 0-1

[Event "2nd FIDE WCC Rapid G12"]
[Site "Minsk"]
[Date "2018.06.22"]
[Round "3"]
[White "Khabibullaeva, Mokhinur"]
[Black "Cherepanova, Evita"]
[Result "1-0"]
[ECO "E68"]
[WhiteElo "1462"]
[BlackElo "1604"]
[Annotator "NA RC"]
[PlyCount "47"]
[EventDate "2018.06.22"]
[EventType "rapid"]
[EventCountry "BLR"]
[SourceTitle "playchess.com"]
[Source "ChessBase"]
[SourceQuality "1"]
[TimeControl "600+5"]

1. d4 {[%emt 0:00:00]} Nf6 {[%emt 0:00:01]} 2. Nf3 {[%emt 0:00:00]} g6 {[%emt 0:00:00]} 3. g3 {[%emt 0:00:00]} Bg7 {[%emt 0:00:01]} 4. Bg2 {[%emt 0:00:00]} d6 {[%emt 0:00:01]} 5. O-O {[%emt 0:00:01]} O-O {[%emt 0:00:01]} 6. c4 {[%emt 0:00:02]} Nbd7 {[%emt 0:00:02]} 7. Nc3 {[%emt 0:00:01]} e5 {[%emt 0:00:02]} 8. e4 {[%emt 0:00:02]} exd4 {[%emt 0:00:03]} 9. Nxd4 {[%emt 0:00:01]} Re8 {[%emt 0:00:02]} 10. h3 {[%emt 0:00:06]} Nc5 {[%emt 0:00:02]} 11. Re1 {[%emt 0:00:12]} a5 {[%emt 0:00:03]} 12. b3 {[%emt 0:00:57]} Nfd7 {[%emt 0:03:25]} 13. Be3 {[%emt 0:00:32]} Ne5 {[%emt 0:00:44]} 14. f4 {[%emt 0:01:03]} Nc6 {[%emt 0:01:21]} 15. Nxc6 {[%emt 0:00:08]} bxc6 {[%emt 0:00:01]} 16. Bd4 {[%emt 0:00:18]} Bxd4+ {[%emt 0:01:37]} 17. Qxd4 {[%emt 0:00:01]} Bd7 {[%emt 0:00:55]} 18. Rad1 {[%emt 0:00:11]} Qc8 {[%emt 0:00:47]} 19. Kh2 {[%emt 0:00:04]} Qb8 {[%emt 0:01:16]} 20. e5 {[%emt 0:00:30]} dxe5 {[%emt 0:00:01]} 21. Qxc5 {[%emt 0:00:03]} Rd8 {[%emt 0:01:03]} 22. Qxe5 {[%emt 0:00:08]} Bf5 {[%emt 0:00:19]} 23. Qf6 {[%emt 0:00:07]} Ra6 {[%emt 0:00:06]} 24. Rxd8+ {[%emt 0:00:03]} 1-0

[Event "2nd FIDE WCC Rapid G12"]
[Site "Minsk"]
[Date "2018.06.22"]
[Round "3"]
[White "Shaban, Aliaksandra"]
[Black "Shokirjonova, Barchinoy"]
[Result "0-1"]
[ECO "E00"]
[WhiteElo "1425"]
[BlackElo "1247"]
[Annotator "NA RC"]
[PlyCount "60"]
[EventDate "2018.06.22"]
[EventType "rapid"]
[EventCountry "BLR"]
[SourceTitle "playchess.com"]
[Source "ChessBase"]
[SourceQuality "1"]
[TimeControl "600+5"]

1. d4 {[%emt 0:00:00]} Nf6 {[%emt 0:00:03]} 2. c4 {[%emt 0:00:00]} e6 {[%emt 0:00:02]} 3. e3 {[%emt 0:00:00]} c5 {[%emt 0:00:11]} 4. Nf3 {[%emt 0:00:09]} Nc6 {[%emt 0:00:04]} 5. Nc3 {[%emt 0:00:16]} d5 {[%emt 0:00:20]} 6. cxd5 {[%emt 0:00:05]} exd5 {[%emt 0:00:02]} 7. dxc5 {[%emt 0:00:02]} Bxc5 {[%emt 0:00:01]} 8. Be2 {[%emt 0:00:10]} O-O {[%emt 0:00:09]} 9. O-O {[%emt 0:00:08]} Be6 {[%emt 0:00:18]} 10. a3 {[%emt 0:00:10]} a5 {[%emt 0:00:09]} 11. Na4 {[%emt 0:00:06]} Bd6 {[%emt 0:00:16]} 12. Nd4 {[%emt 0:00:17]} Bc7 {[%emt 0:01:48]} 13. Nc5 {[%emt 0:00:19]} Qd6 {[%emt 0:00:06]} 14. g3 {[%emt 0:00:20]} Qxc5 {[%emt 0:00:03]} 15. Nxe6 {[%emt 0:00:02]} fxe6 {[%emt 0:00:02]} 16. Bd2 {[%emt 0:00:04]} Ne4 {[%emt 0:00:16]} 17. Rc1 {[%emt 0:00:03]} Qe7 {[%emt 0:00:05]} 18. Be1 {[%emt 0:00:03]} Bb6 {[%emt 0:00:41]} 19. Qb3 {[%emt 0:00:04]} Ba7 {[%emt 0:00:54]} 20. Bb5 {[%emt 0:00:29]} Ne5 {[%emt 0:00:13]} 21. Be2 {[%emt 0:00:06]} Nf3+ {[%emt 0:00:35]} 22. Bxf3 {[%emt 0:00:10]} Rxf3 {[%emt 0:00:04]} 23. Qd1 {[%emt 0:00:19]} Raf8 {[%emt 0:00:07]} 24. Bxa5 {[%emt 0:00:22]} Nxf2 {[%emt 0:01:26]} 25. Qe2 {[%emt 0:00:09]} Qf6 {[%emt 0:02:05]} 26. Kg2 {[%emt 0:01:16]} Qh6 {[%emt 0:00:55]} 27. Qxf3 {[%emt 0:02:10]} Rxf3 {[%emt 0:00:07]} 28. Kxf3 {[%emt 0:00:07]} Qxe3+ {[%emt 0:00:02]} 29. Kg2 {[%emt 0:00:06]} Qe4+ {[%emt 0:00:01]} 30. Kg1 {[%emt 0:00:02]} Qh1# {[%emt 0:00:02]} 0-1

[Event "2nd FIDE WCC Rapid G12"]
[Site "Minsk"]
[Date "2018.06.22"]
[Round "3"]
[White "Dubovik, Maria"]
[Black "Gaal, Zsoka"]
[Result "0-1"]
[ECO "B03"]
[WhiteElo "1408"]
[BlackElo "2060"]
[Annotator "NA RC"]
[PlyCount "126"]
[EventDate "2018.06.22"]
[EventType "rapid"]
[EventCountry "BLR"]
[SourceTitle "playchess.com"]
[Source "ChessBase"]
[SourceQuality "1"]
[TimeControl "600+5"]

1. e4 {[%emt 0:00:00]} Nf6 {[%emt 0:00:01]} 2. e5 {[%emt 0:00:00]} Nd5 {[%emt 0:00:01]} 3. d4 {[%emt 0:00:11]} d6 {[%emt 0:00:01]} 4. c4 {[%emt 0:00:05]} Nb6 {[%emt 0:00:01]} 5. exd6 {[%emt 0:00:08]} cxd6 {[%emt 0:00:01]} 6. a4 {[%emt 0:00:12] B03: Alekhine's Defence: Four Pawns Attack} (6. Nc3 g6 7. Be3 Bg7 8. Rc1 O-O 9. b3 Bf5 10. d5 e5 11. dxe6 Bxe6 12. Nge2 d5 13. c5 Nc6 14. Nd4 Bxd4 15. Bxd4 Re8 16. cxb6 Qh4 17. Ne2 axb6 {1-0 (38) Xiong,J (2618)-Kamsky,G (2678) Saint Louis 2016 CBM 172 [Mekhitarian,K]}) 6... a5 {[%emt 0:00:26]} 7. b3 $146 {[%emt 0:00:12]} ({Predecessor:} 7. Nc3 g6 8. Be3 Bg7 9. Rc1 O-O 10. Nf3 Bg4 11. b3 d5 12. Nb5 dxc4 13. bxc4 Nc6 {½-½ (114) Mortensen,E (2470)-Baburin,A (2520) Copenhagen 1994}) 7... g6 {[%emt 0:00:31]} 8. Bb2 {[%emt 0:00:04]} Bg7 {[%emt 0:00:06]} 9. Nf3 {[%emt 0:00:24]} Nc6 {[%emt 0:00:44]} 10. Be2 {[%emt 0:00:19]} Bg4 {[%emt 0:00:56]} 11. O-O {[%emt 0:00:25]} O-O {[%emt 0:00:26]} 12. h3 {[%emt 0:00:06]} Bxf3 {[%emt 0:00:37]} 13. Bxf3 {[%emt 0:00:15]} d5 {[%emt 0:01:57]} 14. c5 {[%emt 0:00:35]} Nc8 {[%emt 0:00:04]} 15. Na3 {[%emt 0:00:38]} e6 {[%emt 0:01:58]} 16. Nc2 {[%emt 0:00:32]} N8e7 {[%emt 0:00:19]} 17. Ne3 {[%emt 0:00:31]} b6 {[%emt 0:01:05]} 18. cxb6 {[%emt 0:03:09]} Qxb6 {[%emt 0:00:04]} 19. h4 {[%emt 0:01:58]} Nxd4 {[%emt 0:00:56]} 20. Rb1 {[%emt 0:01:08]} Nxf3+ {[%emt 0:01:01]} 21. Qxf3 {[%emt 0:00:02]} Bxb2 {[%emt 0:00:05]} 22. Rxb2 {[%emt 0:00:04]} Qd4 {[%emt 0:00:04]} 23. Rbb1 {[%emt 0:00:18]} Qxh4 {[%emt 0:00:20]} 24. g3 {[%emt 0:00:16]} Qe4 {[%emt 0:00:10]} 25. Qxe4 {[%emt 0:00:12]} dxe4 {[%emt 0:00:01]} 26. Ng4 {[%emt 0:00:01]} f5 {[%emt 0:00:04]} 27. Ne5 {[%emt 0:00:03]} Nd5 {[%emt 0:00:03]} 28. Rbc1 {[%emt 0:00:10]} Rfc8 {[%emt 0:00:04]} 29. Kh2 {[%emt 0:00:09]} e3 {[%emt 0:00:12]} 30. fxe3 {[%emt 0:00:06]} Nxe3 {[%emt 0:00:01]} 31. Rfe1 {[%emt 0:00:02]} Rxc1 {[%emt 0:00:12]} 32. Rxc1 {[%emt 0:00:02]} Ng4+ {[%emt 0:00:01]} 33. Nxg4 {[%emt 0:00:02]} fxg4 {[%emt 0:00:01]} 34. Rc4 {[%emt 0:00:05]} h5 {[%emt 0:00:02]} 35. Rc5 {[%emt 0:00:06]} Kf7 {[%emt 0:00:00]} 36. Kg2 {[%emt 0:00:04]} Kf6 {[%emt 0:00:04]} 37. Kf2 {[%emt 0:00:05]} g5 {[%emt 0:00:03]} 38. Kg2 {[%emt 0:00:07]} h4 {[%emt 0:00:10]} 39. gxh4 {[%emt 0:00:02]} gxh4 {[%emt 0:00:00]} 40. Rh5 {[%emt 0:00:02]} h3+ {[%emt 0:00:11]} 41. Kg3 {[%emt 0:00:02]} Rb8 {[%emt 0:00:15]} 42. Kxg4 {[%emt 0:00:04]} Rxb3 {[%emt 0:00:02]} 43. Rxa5 {[%emt 0:00:21]} Kg6 {[%emt 0:00:08]} 44. Rg5+ {[%emt 0:00:03]} Kf6 {[%emt 0:00:04]} 45. Rh5 {[%emt 0:00:02]} Rb4+ {[%emt 0:00:04]} 46. Kxh3 {[%emt 0:00:02]} Rxa4 47. Kg3 {[%emt 0:00:05]} e5 {[%emt 0:00:09]} 48. Kf3 {[%emt 0:00:02]} Ke6 {[%emt 0:00:06]} 49. Rh8 {[%emt 0:00:06]} Kd5 {[%emt 0:00:07]} 50. Ke3 {[%emt 0:00:07]} Ra3+ {[%emt 0:00:02]} 51. Kd2 {[%emt 0:00:03]} Kd4 {[%emt 0:00:04]} 52. Rd8+ {[%emt 0:00:02]} Ke4 {[%emt 0:00:01]} 53. Ke2 {[%emt 0:00:13]} Ra2+ {[%emt 0:00:02]} 54. Kd1 {[%emt 0:00:08]} (54. Kf1 $1 $11 {remains equal.}) 54... Ke3 {[%emt 0:00:07]} 55. Rb8 {[%emt 0:00:05]} e4 {[%emt 0:00:03]} 56. Rb3+ {[%emt 0:00:02]} Kf2 {[%emt 0:00:01]} 57. Rb8 $19 {[%emt 0:00:07]} Ra1+ {[%emt 0:00:15]} 58. Kd2 {[%emt 0:00:01]} e3+ {[%emt 0:00:03]} 59. Kd3 {[%emt 0:00:03]} e2 {[%emt 0:00:14]} 60. Rf8+ {[%emt 0:00:01]} Ke1 {[%emt 0:00:02]} 61. Re8 {[%emt 0:00:07]} Ra3+ {[%emt 0:00:03]} 62. Kc2 {[%emt 0:00:07]} Kf2 {[%emt 0:00:12]} 63. Rf8+ {[%emt 0:00:01]} Rf3 {[%emt 0:00:01]} 0-1

[Event "2nd FIDE WCC Rapid G12"]
[Site "Minsk"]
[Date "2018.06.22"]
[Round "3"]
[White "Kaliakhmet, Eldana"]
[Black "Dubovyk, Anastasiia"]
[Result "0-1"]
[ECO "B77"]
[WhiteElo "1360"]
[BlackElo "1721"]
[Annotator "NA RC"]
[PlyCount "74"]
[EventDate "2018.06.22"]
[EventType "rapid"]
[EventCountry "BLR"]
[SourceTitle "playchess.com"]
[Source "ChessBase"]
[SourceQuality "1"]
[TimeControl "600+5"]

1. e4 {[%emt 0:00:00]} c5 {[%emt 0:00:05]} 2. Nf3 {[%emt 0:00:00]} d6 {[%emt 0:00:02]} 3. d4 {[%emt 0:00:02]} cxd4 {[%emt 0:00:02]} 4. Nxd4 {[%emt 0:00:01]} Nf6 {[%emt 0:00:01]} 5. Nc3 {[%emt 0:00:01]} g6 {[%emt 0:00:01]} 6. Be3 {[%emt 0:00:02]} Bg7 {[%emt 0:00:02]} 7. f3 {[%emt 0:00:02]} O-O {[%emt 0:00:04]} 8. Bc4 {[%emt 0:00:01]} Nc6 {[%emt 0:00:04]} 9. Qd2 {[%emt 0:00:01]} Bd7 {[%emt 0:00:01]} 10. Bb3 {[%emt 0:00:01]} Rc8 {[%emt 0:00:02]} 11. h4 {[%emt 0:00:02]} h5 {[%emt 0:00:10]} 12. Bh6 {[%emt 0:00:15]} Bxh6 {[%emt 0:01:13]} 13. Qxh6 {[%emt 0:00:08]} Nxd4 {[%emt 0:02:45]} 14. Qxg6+ {[%emt 0:00:08]} Kh8 {[%emt 0:00:02]} 15. Bxf7 {[%emt 0:00:27]} Rxf7 {[%emt 0:02:01]} 16. Qxf7 {[%emt 0:00:14]} Nxc2+ {[%emt 0:00:21]} 17. Kd2 {[%emt 0:00:13]} Nxa1 {[%emt 0:00:32]} 18. Rxa1 {[%emt 0:00:04]} Qf8 {[%emt 0:00:37]} 19. Qg6 {[%emt 0:00:08]} Qg7 {[%emt 0:00:07]} 20. Qg5 {[%emt 0:00:22]} Rc5 {[%emt 0:00:22]} 21. Qxg7+ {[%emt 0:00:58]} Kxg7 {[%emt 0:00:01]} 22. b4 {[%emt 0:00:12]} Rc4 {[%emt 0:00:29]} 23. a3 {[%emt 0:00:06]} b5 {[%emt 0:00:05]} 24. Kd3 {[%emt 0:00:20]} a6 {[%emt 0:00:31]} 25. Re1 {[%emt 0:00:12]} Be6 {[%emt 0:00:12]} 26. g3 {[%emt 0:00:20]} Nd7 {[%emt 0:00:10]} 27. f4 {[%emt 0:00:11]} Rc8 {[%emt 0:00:12]} 28. Kd4 {[%emt 0:00:41]} Nb6 {[%emt 0:00:22]} 29. e5 {[%emt 0:00:16]} Rc4+ {[%emt 0:00:10]} 30. Kd3 {[%emt 0:00:06]} Bf5+ {[%emt 0:00:04]} 31. Kd2 {[%emt 0:00:26]} d5 {[%emt 0:00:21]} 32. Re3 {[%emt 0:00:14]} d4 {[%emt 0:00:07]} 33. Rf3 {[%emt 0:00:45]} dxc3+ {[%emt 0:00:11]} 34. Kc1 {[%emt 0:00:08]} Nd5 {[%emt 0:00:13]} 35. Rf2 {[%emt 0:00:32]} Re4 {[%emt 0:00:18]} 36. Rf1 {[%emt 0:00:09]} Re2 {[%emt 0:00:06]} 37. Rg1 {[%emt 0:00:12]} Rb2 {[%emt 0:00:34]} 0-1